[Event "*** Titled Tuesday 3|2 Blitz (Early)"]
[Site "Chess.com"]
[Date "2017.01.03"]
[Round "5"]
[White "GMMelik"]
[Black "macko06"]
[Result "0-1"]
[WhiteElo "2401"]
[BlackElo "2279"]
[TimeControl "180+2"]
[EndTime "12:01:47 PST"]
[Termination "macko06 won by resignation"]

1. e4 {[%clk 0:03:01.9]} 1... e6 {[%clk 0:03:01.2]} 2. d4 {[%clk 0:02:50.8]}
2... d5 {[%clk 0:03:03.1]} 3. Nc3 {[%clk 0:02:49]} 3... Nf6 {[%clk 0:03:04]} 4.
Bg5 {[%clk 0:02:46.2]} 4... Be7 {[%clk 0:03:05.4]} 5. e5 {[%clk 0:02:47.4]} 5...
Nfd7 {[%clk 0:03:07.1]} 6. h4 {[%clk 0:02:45.2]} 6... h6 {[%clk 0:03:08]} 7.
Bxe7 {[%clk 0:02:45.3]} 7... Qxe7 {[%clk 0:03:09.9]} 8. Qd2 {[%clk 0:02:42.2]}
8... a6 {[%clk 0:03:10.9]} 9. O-O-O {[%clk 0:02:38.9]} 9... c5 {[%clk
0:03:11.9]} 10. f4 {[%clk 0:02:38.9]} 10... Nc6 {[%clk 0:03:12.9]} 11. Nf3
{[%clk 0:02:39.8]} 11... b5 {[%clk 0:03:13]} 12. dxc5 {[%clk 0:02:39.6]} 12...
Qxc5 {[%clk 0:03:13.4]} 13. Ne2 {[%clk 0:02:37.3]} 13... b4 {[%clk 0:03:12.8]}
14. Ned4 {[%clk 0:02:29.5]} 14... Nxd4 {[%clk 0:03:13.5]} 15. Nxd4 {[%clk
0:02:29.7]} 15... a5 {[%clk 0:03:14.2]} 16. Kb1 {[%clk 0:02:29.6]} 16... Ba6
{[%clk 0:03:14.8]} 17. h5 {[%clk 0:02:25]} 17... Bxf1 {[%clk 0:03:15.4]} 18.
Rhxf1 {[%clk 0:02:22.9]} 18... Nb6 {[%clk 0:02:57.9]} 19. b3 {[%clk 0:02:15.5]}
19... a4 {[%clk 0:02:58.4]} 20. f5 {[%clk 0:02:16.9]} 20... axb3 {[%clk
0:02:53.3]} 21. cxb3 {[%clk 0:02:18.8]} 21... exf5 {[%clk 0:02:38.2]} 22. Rc1
{[%clk 0:02:09.5]} 22... Qa5 {[%clk 0:02:32.4]} 23. Nc6 {[%clk 0:02:02.8]} 23...
Qb5 {[%clk 0:02:25.8]} 24. Qxb4 {[%clk 0:01:55.2]} 24... Qxb4 {[%clk 0:02:09.3]}
25. Nxb4 {[%clk 0:01:57.1]} 25... g6 {[%clk 0:02:10.6]} 26. hxg6 {[%clk
0:01:55]} 26... fxg6 {[%clk 0:02:12.5]} 27. Rc6 {[%clk 0:01:55.3]} 27... Nd7
{[%clk 0:02:12.7]} 28. Nxd5 {[%clk 0:01:46.8]} 28... Ra5 {[%clk 0:01:54.6]} 29.
Nc7+ {[%clk 0:01:39.9]} 29... Ke7 {[%clk 0:01:53.6]} 30. Rxg6 {[%clk 0:01:31.4]}
30... Rxe5 {[%clk 0:01:53.4]} 31. Rd1 {[%clk 0:01:26.3]} 31... Nf6 {[%clk
0:01:48.5]} 32. Rc1 {[%clk 0:00:51]} 32... Kf7 {[%clk 0:01:47.2]} 33. Rg3 {[%clk
0:00:52]} 33... Ne4 {[%clk 0:01:47.4]} 34. Rd3 {[%clk 0:00:47.6]} 34... Rg8
{[%clk 0:01:44.6]} 35. Rd7+ {[%clk 0:00:43.8]} 35... Re7 {[%clk 0:01:41.8]} 36.
Rxe7+ {[%clk 0:00:43.6]} 36... Kxe7 {[%clk 0:01:43.7]} 37. Rc2 {[%clk
0:00:45.1]} 37... Kd6 {[%clk 0:01:32.1]} 38. a4 {[%clk 0:00:41.4]} 38... Rb8
{[%clk 0:01:30.8]} 39. Nb5+ {[%clk 0:00:42]} 39... Kd5 {[%clk 0:01:24.7]} 40.
Kb2 {[%clk 0:00:40.1]} 40... Nc5 {[%clk 0:01:21.3]} 41. Rd2+ {[%clk 0:00:33.6]}
41... Ke4 {[%clk 0:01:22.3]} 42. Rd6 {[%clk 0:00:28.6]} 42... Rg8 {[%clk
0:01:17.8]} 43. Rd2 {[%clk 0:00:21.1]} 43... Ke3 {[%clk 0:01:18.3]} 44. Rc2
{[%clk 0:00:20.1]} 44... Nd3+ {[%clk 0:01:19.2]} 45. Ka3 {[%clk 0:00:20]} 45...
Nf4 {[%clk 0:01:16.4]} 46. a5 {[%clk 0:00:19.5]} 46... Nxg2 {[%clk 0:01:16.2]}
47. a6 {[%clk 0:00:20.6]} 47... f4 {[%clk 0:01:17.4]} 48. a7 {[%clk 0:00:20.6]}
48... f3 {[%clk 0:01:14.7]} 49. Nc7 {[%clk 0:00:20.4]} 49... f2 {[%clk
0:01:14.5]} 50. Rxf2 {[%clk 0:00:19.1]} 50... Kxf2 {[%clk 0:01:15.7]} 51. a8=Q
{[%clk 0:00:21]} 51... Rxa8+ {[%clk 0:01:16.7]} 52. Nxa8 {[%clk 0:00:22.9]}
52... h5 {[%clk 0:01:17.8]} 53. b4 {[%clk 0:00:24.4]} 53... h4 {[%clk
0:01:19.2]} 54. b5 {[%clk 0:00:25.8]} 54... Ne3 {[%clk 0:01:19.9]} 55. Kb4
{[%clk 0:00:22.3]} 55... h3 {[%clk 0:01:20.8]} 56. Kc5 {[%clk 0:00:22.1]} 56...
h2 {[%clk 0:01:21.8]} 57. b6 {[%clk 0:00:23.7]} 57... h1=Q {[%clk 0:01:23.3]}
58. Nc7 {[%clk 0:00:25.3]} 58... Qb7 {[%clk 0:01:21.4]} 0-1

[Event "*** Titled Tuesday 3|2 Blitz (Early)"]
[Site "Chess.com"]
[Date "2017.01.03"]
[Round "5"]
[White "davidarenas1224"]
[Black "Rickstereo"]
[Result "1-0"]
[WhiteElo "2222"]
[BlackElo "2161"]
[TimeControl "180+2"]
[EndTime "12:01:58 PST"]
[Termination "davidarenas1224 won on time"]

1. e4 {[%clk 0:02:59.6]} 1... c5 {[%clk 0:03:00]} 2. Nf3 {[%clk 0:02:59]} 2...
Nc6 {[%clk 0:02:59.5]} 3. Nc3 {[%clk 0:02:56]} 3... Nf6 {[%clk 0:02:58.9]} 4. d4
{[%clk 0:02:56.2]} 4... cxd4 {[%clk 0:02:59]} 5. Nxd4 {[%clk 0:02:58.1]} 5... e5
{[%clk 0:03:00.5]} 6. Ndb5 {[%clk 0:02:58.7]} 6... d6 {[%clk 0:02:59.9]} 7. Bg5
{[%clk 0:02:59.8]} 7... a6 {[%clk 0:03:01]} 8. Na3 {[%clk 0:03:01.3]} 8... b5
{[%clk 0:03:00.7]} 9. Nd5 {[%clk 0:03:02.2]} 9... Be7 {[%clk 0:03:01.7]} 10.
Bxf6 {[%clk 0:03:03.8]} 10... Bxf6 {[%clk 0:03:02.6]} 11. c4 {[%clk 0:03:05.4]}
11... b4 {[%clk 0:03:02.6]} 12. Nc2 {[%clk 0:03:06.5]} 12... a5 {[%clk 0:03:03]}
13. Be2 {[%clk 0:03:06.8]} 13... O-O {[%clk 0:03:00.8]} 14. O-O {[%clk
0:03:07.7]} 14... Bg5 {[%clk 0:03:01.9]} 15. Qd3 {[%clk 0:03:06.6]} 15... Be6
{[%clk 0:03:00.5]} 16. b3 {[%clk 0:03:04.3]} 16... Ne7 {[%clk 0:02:58.8]} 17.
Nde3 {[%clk 0:03:02.1]} 17... Qc7 {[%clk 0:02:39.1]} 18. Rfd1 {[%clk 0:03:01.2]}
18... Rad8 {[%clk 0:02:39.7]} 19. Bf3 {[%clk 0:03:01.7]} 19... Kh8 {[%clk
0:02:39.7]} 20. Qe2 {[%clk 0:03:01.4]} 20... g6 {[%clk 0:02:36]} 21. Rd3 {[%clk
0:02:59]} 21... f5 {[%clk 0:02:36.2]} 22. Rad1 {[%clk 0:02:59.5]} 22... Bxe3
{[%clk 0:02:23.9]} 23. Qxe3 {[%clk 0:02:43.4]} 23... fxe4 {[%clk 0:02:15.6]} 24.
Bxe4 {[%clk 0:02:41.8]} 24... Rf4 {[%clk 0:02:14.9]} 25. f3 {[%clk 0:02:29.1]}
25... Nf5 {[%clk 0:01:59.1]} 26. Bxf5 {[%clk 0:02:21.2]} 26... Bxf5 {[%clk
0:01:55.1]} 27. Rxd6 {[%clk 0:02:19.3]} 27... Re8 {[%clk 0:01:31.1]} 28. Ne1
{[%clk 0:02:10.3]} 28... Qf7 {[%clk 0:01:06.9]} 29. Nd3 {[%clk 0:01:58.1]} 29...
Bxd3 {[%clk 0:00:59.3]} 30. R6xd3 {[%clk 0:02:00]} 30... e4 {[%clk 0:00:59.2]}
31. Rd7 {[%clk 0:01:54.3]} 31... Qf6 {[%clk 0:01:00.1]} 32. R7d6 {[%clk
0:01:54]} 32... Qf8 {[%clk 0:00:51.3]} 33. Qd4+ {[%clk 0:01:38.3]} 33... Kg8
{[%clk 0:00:50.2]} 34. Qd5+ {[%clk 0:01:34]} 34... Kh8 {[%clk 0:00:49.6]} 35.
Qd4+ {[%clk 0:01:28.1]} 35... Kg8 {[%clk 0:00:49.4]} 36. fxe4 {[%clk 0:01:26.9]}
36... Rfxe4 {[%clk 0:00:49.2]} 37. Qd5+ {[%clk 0:01:27.7]} 37... Kh8 {[%clk
0:00:49.8]} 38. Rf1 {[%clk 0:01:11.4]} 38... Rf4 {[%clk 0:00:39.3]} 39. Rxf4
{[%clk 0:00:50.1]} 39... Qxf4 {[%clk 0:00:39.7]} 40. Qd2 {[%clk 0:00:51.6]}
40... Qf8 {[%clk 0:00:04.2]} 41. h3 {[%clk 0:00:49.7]} 1-0

[Event "*** Titled Tuesday 3|2 Blitz (Early)"]
[Site "Chess.com"]
[Date "2017.01.03"]
[Round "5"]
[White "sandropozo"]
[Black "mwpchess"]
[Result "1-0"]
[WhiteElo "2422"]
[BlackElo "2439"]
[TimeControl "180+2"]
[EndTime "12:02:14 PST"]
[Termination "sandropozo won by resignation"]

1. d4 {[%clk 0:03:02]} 1... Nf6 {[%clk 0:02:59.1]} 2. Nf3 {[%clk 0:03:01.6]}
2... d5 {[%clk 0:02:59.1]} 3. c4 {[%clk 0:03:01.4]} 3... e6 {[%clk 0:02:59.5]}
4. Nc3 {[%clk 0:03:01.2]} 4... dxc4 {[%clk 0:02:58.5]} 5. g3 {[%clk 0:02:59.7]}
5... Nbd7 {[%clk 0:02:44]} 6. Bg2 {[%clk 0:02:58.9]} 6... Nb6 {[%clk 0:02:43.7]}
7. O-O {[%clk 0:02:57.6]} 7... c5 {[%clk 0:02:41.2]} 8. a4 {[%clk 0:02:38.9]}
8... cxd4 {[%clk 0:02:33]} 9. Qxd4 {[%clk 0:02:26.1]} 9... Qxd4 {[%clk
0:02:19.4]} 10. Nxd4 {[%clk 0:02:25.9]} 10... a6 {[%clk 0:02:16.3]} 11. e4
{[%clk 0:02:12.9]} 11... e5 {[%clk 0:01:58.6]} 12. Nc2 {[%clk 0:02:06.6]} 12...
Be6 {[%clk 0:01:41.5]} 13. f4 {[%clk 0:02:02.6]} 13... Bc5+ {[%clk 0:01:33.2]}
14. Be3 {[%clk 0:02:03.8]} 14... Bxe3+ {[%clk 0:01:33.2]} 15. Nxe3 {[%clk
0:02:05.3]} 15... Ng4 {[%clk 0:01:18]} 16. Nxg4 {[%clk 0:01:56.8]} 16... Bxg4
{[%clk 0:01:18.2]} 17. f5 {[%clk 0:01:56.3]} 17... f6 {[%clk 0:01:18.6]} 18. a5
{[%clk 0:01:48.2]} 18... Nd7 {[%clk 0:01:18.8]} 19. Nd5 {[%clk 0:01:49.3]} 19...
Rc8 {[%clk 0:01:09]} 20. Rfc1 {[%clk 0:01:43.4]} 20... Be2 {[%clk 0:01:04.4]}
21. Kf2 {[%clk 0:01:40.8]} 21... Bd3 {[%clk 0:01:03.4]} 22. Ra3 {[%clk
0:01:18.3]} 22... Kf7 {[%clk 0:01:01.2]} 23. Rac3 {[%clk 0:01:03]} 23... Nc5
{[%clk 0:00:53]} 24. Nb6 {[%clk 0:00:58.1]} 24... Rc6 {[%clk 0:00:46]} 25. Ke3
{[%clk 0:00:55.1]} 25... Rd8 {[%clk 0:00:29.1]} 26. Nxc4 {[%clk 0:00:39.1]}
26... Bxc4 {[%clk 0:00:29.5]} 27. Rxc4 {[%clk 0:00:40.3]} 27... Nb3 {[%clk
0:00:27.1]} 28. Rxc6 {[%clk 0:00:39.3]} 28... bxc6 {[%clk 0:00:27.4]} 29. Rxc6
{[%clk 0:00:39.1]} 29... Nxa5 {[%clk 0:00:28]} 30. Rc7+ {[%clk 0:00:34.8]} 30...
Kf8 {[%clk 0:00:28.5]} 31. b4 {[%clk 0:00:33.4]} 31... Nb3 {[%clk 0:00:26.3]}
32. Bf1 {[%clk 0:00:34.3]} 32... Rb8 {[%clk 0:00:23.4]} 33. Bc4 {[%clk 0:00:26]}
33... Rxb4 {[%clk 0:00:21.9]} 34. Rf7+ {[%clk 0:00:21.3]} 34... Ke8 {[%clk
0:00:22.3]} 35. Bd5 {[%clk 0:00:22.5]} 35... Nd4 {[%clk 0:00:19.9]} 36. Rxg7
{[%clk 0:00:15.9]} 36... a5 {[%clk 0:00:20.5]} 37. Rxh7 {[%clk 0:00:15.5]} 37...
a4 {[%clk 0:00:21.4]} 38. Ra7 {[%clk 0:00:16.6]} 38... Rb2 {[%clk 0:00:20.9]}
39. h4 {[%clk 0:00:16.5]} 39... Re2+ {[%clk 0:00:21.2]} 40. Kd3 {[%clk 0:00:17]}
40... Rg2 {[%clk 0:00:21.9]} 41. h5 {[%clk 0:00:16.6]} 41... Rxg3+ {[%clk
0:00:22.6]} 42. Kc4 {[%clk 0:00:17.1]} 42... Rh3 {[%clk 0:00:23]} 43. Bf7+
{[%clk 0:00:17.5]} 43... Kf8 {[%clk 0:00:22.4]} 44. Bg6 {[%clk 0:00:18.4]} 44...
a3 {[%clk 0:00:22.1]} 45. Kd5 {[%clk 0:00:18.4]} 45... Ne2 {[%clk 0:00:13.6]}
46. Ke6 {[%clk 0:00:18.3]} 46... Nf4+ {[%clk 0:00:12.5]} 47. Kxf6 {[%clk
0:00:19.5]} 1-0

[Event "*** Titled Tuesday 3|2 Blitz (Early)"]
[Site "Chess.com"]
[Date "2017.01.03"]
[Round "5"]
[White "roldieyi"]
[Black "LonesomeGeorge1"]
[Result "1-0"]
[WhiteElo "2168"]
[BlackElo "2167"]
[TimeControl "180+2"]
[EndTime "12:02:25 PST"]
[Termination "roldieyi won on time"]

1. d4 {[%clk 0:03:01.9]} 1... Nf6 {[%clk 0:02:59.6]} 2. Nf3 {[%clk 0:03:02]}
2... g6 {[%clk 0:02:59.2]} 3. g3 {[%clk 0:03:03]} 3... Bg7 {[%clk 0:03:00.3]} 4.
Bg2 {[%clk 0:03:04.5]} 4... O-O {[%clk 0:03:01.8]} 5. O-O {[%clk 0:03:05.9]}
5... d6 {[%clk 0:02:55.3]} 6. a4 {[%clk 0:03:06.7]} 6... a5 {[%clk 0:02:55.6]}
7. c3 {[%clk 0:03:06.7]} 7... Nc6 {[%clk 0:02:36.9]} 8. Qb3 {[%clk 0:03:07.2]}
8... e5 {[%clk 0:02:31.2]} 9. d5 {[%clk 0:03:03.4]} 9... Ne7 {[%clk 0:02:28.9]}
10. c4 {[%clk 0:03:03.9]} 10... Nh5 {[%clk 0:02:24]} 11. e4 {[%clk 0:02:54.5]}
11... h6 {[%clk 0:02:21]} 12. Nc3 {[%clk 0:02:54.3]} 12... f5 {[%clk 0:02:20]}
13. c5 {[%clk 0:02:50.1]} 13... f4 {[%clk 0:02:09.5]} 14. Nb5 {[%clk 0:02:42.4]}
14... g5 {[%clk 0:01:54.4]} 15. Rd1 {[%clk 0:02:02.6]} 15... Ng6 {[%clk
0:01:45.9]} 16. Bd2 {[%clk 0:01:49.9]} 16... Rf7 {[%clk 0:01:26.1]} 17. Rac1
{[%clk 0:01:43.3]} 17... Bf8 {[%clk 0:01:02.6]} 18. cxd6 {[%clk 0:01:43.2]}
18... Bxd6 {[%clk 0:01:01.1]} 19. Nxd6 {[%clk 0:01:40.8]} 19... cxd6 {[%clk
0:01:03]} 20. Qb5 {[%clk 0:01:37.1]} 20... Bg4 {[%clk 0:00:57.1]} 21. Rc3 {[%clk
0:01:24.4]} 21... Qf8 {[%clk 0:00:55.2]} 22. Qe2 {[%clk 0:01:00.8]} 22... fxg3
{[%clk 0:00:49]} 23. hxg3 {[%clk 0:00:58]} 23... Nhf4 {[%clk 0:00:50]} 24. gxf4
{[%clk 0:00:54.5]} 24... Nxf4 {[%clk 0:00:51.9]} 25. Bxf4 {[%clk 0:00:55.1]}
25... Rxf4 {[%clk 0:00:51]} 26. Rdd3 {[%clk 0:00:52.1]} 26... Rc8 {[%clk
0:00:39.4]} 27. Rxc8 {[%clk 0:00:40.2]} 27... Qxc8 {[%clk 0:00:41.3]} 28. Qd2
{[%clk 0:00:37]} 28... Rxe4 {[%clk 0:00:20.8]} 29. Nh2 {[%clk 0:00:14]} 29...
Rxa4 {[%clk 0:00:19.3]} 30. Rc3 {[%clk 0:00:09.8]} 30... Qf5 {[%clk 0:00:16.2]}
31. Qc2 {[%clk 0:00:08.4]} 31... Ra1+ {[%clk 0:00:12.9]} 32. Nf1 {[%clk
0:00:09.3]} 32... Qxc2 {[%clk 0:00:07.6]} 33. Rxc2 {[%clk 0:00:10.4]} 33... b5
{[%clk 0:00:07.5]} 34. Kh2 {[%clk 0:00:10.8]} 34... b4 {[%clk 0:00:06.5]} 35.
Ne3 {[%clk 0:00:11.1]} 35... Bd7 {[%clk 0:00:06.9]} 36. Rc7 {[%clk 0:00:11.6]}
36... Be8 {[%clk 0:00:07.6]} 37. Nf5 {[%clk 0:00:10.2]} 37... a4 {[%clk
0:00:04.6]} 38. Nxd6 {[%clk 0:00:10.6]} 38... Bg6 {[%clk 0:00:06.3]} 39. Bh3
{[%clk 0:00:10.1]} 39... a3 {[%clk 0:00:06.9]} 40. bxa3 {[%clk 0:00:10.9]} 40...
b3 {[%clk 0:00:07.8]} 41. Be6+ {[%clk 0:00:12]} 41... Kf8 {[%clk 0:00:07.9]} 42.
Nc4 {[%clk 0:00:10.4]} 42... Ra2 {[%clk 0:00:06.3]} 43. Kg3 {[%clk 0:00:10.4]}
43... Rc2 {[%clk 0:00:05.6]} 44. d6 {[%clk 0:00:09.4]} 1-0

[Event "*** Titled Tuesday 3|2 Blitz (Early)"]
[Site "Chess.com"]
[Date "2017.01.03"]
[Round "5"]
[White "BillieKimbah"]
[Black "Kouzari"]
[Result "1-0"]
[WhiteElo "2592"]
[BlackElo "2403"]
[TimeControl "180+2"]
[EndTime "12:02:26 PST"]
[Termination "BillieKimbah won by resignation"]

1. Nf3 {[%clk 0:03:01.5]} 1... Nf6 {[%clk 0:02:59.7]} 2. g3 {[%clk 0:03:01.8]}
2... d5 {[%clk 0:03:00.8]} 3. Bg2 {[%clk 0:03:02.9]} 3... c6 {[%clk 0:03:02.7]}
4. O-O {[%clk 0:03:03.1]} 4... Bf5 {[%clk 0:03:04.4]} 5. d3 {[%clk 0:03:03.4]}
5... h6 {[%clk 0:03:05.9]} 6. c4 {[%clk 0:03:03.7]} 6... e6 {[%clk 0:03:07.3]}
7. cxd5 {[%clk 0:03:03.8]} 7... exd5 {[%clk 0:03:07.4]} 8. Qb3 {[%clk
0:03:04.3]} 8... Qb6 {[%clk 0:03:07.4]} 9. Qc2 {[%clk 0:03:05.3]} 9... Be7
{[%clk 0:03:07.7]} 10. Nc3 {[%clk 0:03:06]} 10... O-O {[%clk 0:03:08.1]} 11. e4
{[%clk 0:03:07.1]} 11... dxe4 {[%clk 0:03:09.6]} 12. dxe4 {[%clk 0:03:07.7]}
12... Bh7 {[%clk 0:03:11.2]} 13. Be3 {[%clk 0:03:06.5]} 13... Qa5 {[%clk
0:03:12.2]} 14. h3 {[%clk 0:03:06.7]} 14... Nbd7 {[%clk 0:03:09.1]} 15. Nd4
{[%clk 0:03:05.7]} 15... Rfe8 {[%clk 0:03:10]} 16. f3 {[%clk 0:02:59.1]} 16...
Rad8 {[%clk 0:03:10.8]} 17. Bf2 {[%clk 0:02:58.7]} 17... Nb6 {[%clk 0:03:02.5]}
18. Rad1 {[%clk 0:02:57.2]} 18... Nfd5 {[%clk 0:03:01.7]} 19. Qb3 {[%clk
0:02:48.8]} 19... Nxc3 {[%clk 0:02:58.4]} 20. bxc3 {[%clk 0:02:50.2]} 20... Na4
{[%clk 0:02:31.8]} 21. Ne2 {[%clk 0:02:43.7]} 21... b5 {[%clk 0:02:28.7]} 22.
Rfe1 {[%clk 0:02:06.1]} 22... Bc5 {[%clk 0:02:27.5]} 23. Bd4 {[%clk 0:02:04.6]}
23... Qb6 {[%clk 0:02:18.2]} 24. Kh2 {[%clk 0:02:04.3]} 24... Bxd4 {[%clk
0:02:09.9]} 25. cxd4 {[%clk 0:02:04.6]} 25... a5 {[%clk 0:01:54]} 26. Rc1 {[%clk
0:02:03.1]} 26... Kf8 {[%clk 0:01:43.9]} 27. Rc2 {[%clk 0:01:58]} 27... c5
{[%clk 0:01:40.9]} 28. Rb1 {[%clk 0:01:45.8]} 28... Rb8 {[%clk 0:01:41]} 29.
dxc5 {[%clk 0:01:40.6]} 29... Nxc5 {[%clk 0:01:41.6]} 30. Qe3 {[%clk 0:01:39.3]}
30... Ne6 {[%clk 0:01:31.4]} 31. Qc1 {[%clk 0:01:39.9]} 31... b4 {[%clk
0:01:27.2]} 32. f4 {[%clk 0:01:31.3]} 32... Nd4 {[%clk 0:01:17.6]} 33. Nxd4
{[%clk 0:01:31.6]} 33... Qxd4 {[%clk 0:01:19.4]} 34. f5 {[%clk 0:01:33]} 34...
Bg8 {[%clk 0:00:54.7]} 35. Rc4 {[%clk 0:01:29.1]} 35... Qf6 {[%clk 0:00:40.1]}
36. Rc6 {[%clk 0:01:08.6]} 36... Qd4 {[%clk 0:00:36.5]} 37. f6 {[%clk
0:01:04.8]} 37... g5 {[%clk 0:00:26.6]} 38. Qc2 {[%clk 0:00:48.6]} 38... Bh7
{[%clk 0:00:20.1]} 39. Rd1 {[%clk 0:00:49.1]} 39... Qe5 {[%clk 0:00:21.3]} 40.
Qc4 {[%clk 0:00:36.3]} 40... Rbd8 {[%clk 0:00:12.3]} 41. Rxd8 {[%clk 0:00:28.3]}
41... Rxd8 {[%clk 0:00:13.5]} 42. Rc7 {[%clk 0:00:29.9]} 42... Qxf6 {[%clk
0:00:12.9]} 43. e5 {[%clk 0:00:30]} 43... Qf5 {[%clk 0:00:08.3]} 44. e6 {[%clk
0:00:30.3]} 44... fxe6 {[%clk 0:00:07.6]} 45. Ra7 {[%clk 0:00:20.4]} 45... Qf6
{[%clk 0:00:03.2]} 46. Rxh7 {[%clk 0:00:19.6]} 46... Rd2 {[%clk 0:00:03.4]} 47.
Qc8+ {[%clk 0:00:19.2]} 47... Rd8 {[%clk 0:00:04.6]} 48. Qc7 {[%clk 0:00:19.4]}
48... Qe7 {[%clk 0:00:06.5]} 49. Qxe7+ {[%clk 0:00:19.2]} 1-0

[Event "*** Titled Tuesday 3|2 Blitz (Early)"]
[Site "Chess.com"]
[Date "2017.01.03"]
[Round "5"]
[White "IMprovidence"]
[Black "Quiet_Desperation"]
[Result "0-1"]
[WhiteElo "2211"]
[BlackElo "2366"]
[TimeControl "180+2"]
[EndTime "12:02:47 PST"]
[Termination "Quiet_Desperation won on time"]

1. d4 {[%clk 0:03:02]} 1... Nf6 {[%clk 0:03:00.5]} 2. c4 {[%clk 0:03:02.1]} 2...
e6 {[%clk 0:03:01]} 3. Nf3 {[%clk 0:03:02.9]} 3... Bb4+ {[%clk 0:03:02.1]} 4.
Bd2 {[%clk 0:03:02.3]} 4... Qe7 {[%clk 0:03:03.2]} 5. Nc3 {[%clk 0:03:03]} 5...
Nc6 {[%clk 0:03:04.2]} 6. Qc2 {[%clk 0:03:03.2]} 6... O-O {[%clk 0:03:04.2]} 7.
e4 {[%clk 0:03:01.9]} 7... d6 {[%clk 0:03:04.4]} 8. Bd3 {[%clk 0:03:00.2]} 8...
e5 {[%clk 0:03:03.4]} 9. d5 {[%clk 0:03:00.7]} 9... Nb8 {[%clk 0:03:01.3]} 10.
O-O-O {[%clk 0:02:58.5]} 10... a5 {[%clk 0:02:37]} 11. h3 {[%clk 0:02:58]} 11...
c6 {[%clk 0:02:29.1]} 12. Kb1 {[%clk 0:02:56.9]} 12... Na6 {[%clk 0:02:21.2]}
13. g4 {[%clk 0:02:51.6]} 13... Nc5 {[%clk 0:02:19.4]} 14. g5 {[%clk 0:02:48.7]}
14... Nh5 {[%clk 0:02:14.3]} 15. Be2 {[%clk 0:02:39.2]} 15... g6 {[%clk
0:02:07.3]} 16. Nh2 {[%clk 0:02:20.9]} 16... Bxc3 {[%clk 0:02:06.6]} 17. bxc3
{[%clk 0:01:48]} 17... Nxe4 {[%clk 0:01:52]} 18. Bxh5 {[%clk 0:01:42.4]} 18...
Nxd2+ {[%clk 0:01:51.7]} 19. Qxd2 {[%clk 0:01:38.4]} 19... gxh5 {[%clk
0:01:51.9]} 20. Nf1 {[%clk 0:01:33.3]} 20... Bf5+ {[%clk 0:01:47.8]} 21. Ka1
{[%clk 0:01:33.5]} 21... cxd5 {[%clk 0:01:44.6]} 22. Ne3 {[%clk 0:01:29.3]}
22... Be6 {[%clk 0:01:40.4]} 23. cxd5 {[%clk 0:01:24]} 23... Bd7 {[%clk
0:01:39.2]} 24. Qe2 {[%clk 0:01:23.6]} 24... f5 {[%clk 0:01:34.6]} 25. Qxh5
{[%clk 0:01:14.8]} 25... Be8 {[%clk 0:01:26.9]} 26. Qh6 {[%clk 0:00:44.8]} 26...
Rc8 {[%clk 0:01:18.6]} 27. h4 {[%clk 0:00:34.3]} 27... e4 {[%clk 0:01:12]} 28.
h5 {[%clk 0:00:27.4]} 28... Rxc3 {[%clk 0:01:06.1]} 29. g6 {[%clk 0:00:19.2]}
29... Qg7 {[%clk 0:00:53.2]} 30. gxh7+ {[%clk 0:00:18.6]} 30... Kh8 {[%clk
0:00:53]} 31. Qxg7+ {[%clk 0:00:17]} 31... Kxg7 {[%clk 0:00:54]} 32. Rhg1+
{[%clk 0:00:17.4]} 32... Kxh7 {[%clk 0:00:54]} 33. Rb1 {[%clk 0:00:16.6]} 33...
b5 {[%clk 0:00:49.6]} 34. Rg5 {[%clk 0:00:17.5]} 34... Bd7 {[%clk 0:00:45.8]}
35. Rbg1 {[%clk 0:00:16.5]} 35... Rf7 {[%clk 0:00:40.7]} 36. h6 {[%clk
0:00:15.1]} 36... f4 {[%clk 0:00:31.7]} 37. Rg7+ {[%clk 0:00:15.4]} 37... Rxg7
{[%clk 0:00:32.8]} 38. Rxg7+ {[%clk 0:00:14.6]} 38... Kxh6 {[%clk 0:00:33.8]}
39. Rxd7 {[%clk 0:00:15.8]} 39... fxe3 {[%clk 0:00:34.9]} 40. Rxd6+ {[%clk
0:00:17]} 40... Kg5 {[%clk 0:00:34.5]} 41. fxe3 {[%clk 0:00:18.6]} 41... Rxe3
{[%clk 0:00:35.5]} 42. Rb6 {[%clk 0:00:19.8]} 42... Rd3 {[%clk 0:00:26.6]} 43.
d6 {[%clk 0:00:19.7]} 43... Kf4 {[%clk 0:00:25.1]} 44. Rxb5 {[%clk 0:00:20.7]}
44... e3 {[%clk 0:00:26.7]} 45. Rxa5 {[%clk 0:00:20.3]} 45... e2 {[%clk
0:00:24.8]} 46. Ra4+ {[%clk 0:00:21.8]} 46... Ke3 {[%clk 0:00:19.2]} 0-1